bitfinex/quotes_BTCUSD_20251016
["timestamp","ask_amount","ask_price","bid_price","bid_amount"]
[1760625660211,0.12,111140.0,111120.0,0.56341362]
[1760625660431,0.12,111140.0,111130.0,1.08338302]
[1760625660895,4.72323613,111160.0,111150.0,0.17993702]
[1760625661114,4.83323613,111160.0,111150.0,1.08335064]
[1760625661330,4.83323613,111160.0,111150.0,1.09578029]
[1760625661544,4.83323613,111160.0,111150.0,0.08969012]
[1760625661755,4.83323613,111160.0,111150.0,0.26962714]
[1760625661985,4.83323613,111160.0,111150.0,1.08335064]
[1760625662199,4.83323613,111160.0,111150.0,1.11953292]
[1760625662409,4.72323613,111160.0,111150.0,1.11953292]
[1760625662627,4.72323613,111160.0,111150.0,0.42969012]
[1760625662835,4.72323613,111160.0,111150.0,0.60962714]
[1760625663046,4.72323613,111160.0,111150.0,0.64580942]
[1760625663482,4.72323613,111160.0,111150.0,1.12053292]
[1760625664129,4.72323613,111160.0,111150.0,6.12053292]
[1760625664583,4.72323613,111160.0,111150.0,5.64680942]
[1760625664815,4.72323613,111160.0,111150.0,0.64680942]
[1760625665083,5.19695963,111160.0,111150.0,0.001]
[1760625665292,4.72323613,111160.0,111150.0,0.001]
[1760625665507,5.37688046,111160.0,111150.0,0.001]
[1760625665720,5.37678046,111160.0,111150.0,0.001]
[1760625666189,5.3857765,111160.0,111130.0,0.34]
[1760625666401,5.3857765,111160.0,111130.0,0.6096594]
[1760625666615,5.3857765,111160.0,111130.0,0.42969012]
[1760625666832,5.3857765,111160.0,111130.0,0.60965726]
[1760625666833,5.19685963,111160.0,111130.0,0.60965726]
[1760625667039,4.71313613,111160.0,111140.0,0.08969012]
[1760625667281,4.71313613,111160.0,111140.0,0.2696427]
[1760625668032,4.71313613,111160.0,111140.0,0.08969012]
[1760625668839,4.71313613,111160.0,111140.0,0.26964254]
[1760625669559,4.71313613,111160.0,111140.0,0.26964235]
[1760625669786,4.71313613,111160.0,111140.0,0.09069012]
[1760625670004,4.72313613,111160.0,111140.0,0.09069012]
[1760625670240,4.71313613,111160.0,111140.0,0.27064192]
[1760625670484,4.71313613,111160.0,111150.0,0.17993702]
[1760625670732,4.71313613,111160.0,111150.0,1.08335064]
[1760625671448,4.71313613,111160.0,111150.0,0.60962714]
[1760625672848,4.71313613,111160.0,111150.0,0.61062714]
[1760625673077,4.71313613,111160.0,111150.0,0.60962714]
[1760625673326,4.71313613,111160.0,111150.0,6.11953292]
[1760625673564,4.71313613,111160.0,111150.0,6.12053292]
[1760625674247,4.71313613,111160.0,111150.0,0.64580942]
[1760625674465,4.71313613,111160.0,111150.0,0.43069012]
[1760625674686,4.71313613,111160.0,111150.0,0.61062714]
[1760625674904,4.71313613,111160.0,111150.0,1.08435064]
[1760625675422,4.71313613,111160.0,111150.0,0.61062714]
[1760625675635,4.46404379,111160.0,111150.0,0.341]
[1760625675922,4.46404379,111160.0,111150.0,0.51993702]
[1760625676154,4.46404379,111160.0,111150.0,0.341]
[1760625676155,4.46580665,111160.0,111150.0,0.341]
[1760625676370,4.46580665,111160.0,111150.0,0.52093702]
[1760625676621,4.46580665,111160.0,111150.0,1.08435064]
[1760625677377,4.46580665,111160.0,111150.0,0.61062714]
[1760625677628,4.46580665,111160.0,111150.0,0.43069012]
[1760625677844,4.46580665,111160.0,111150.0,0.001]
[1760625678052,5.11945098,111160.0,111150.0,0.001]
[1760625678269,5.20913306,111160.0,111150.0,0.001]
[1760625678482,5.11945098,111160.0,111150.0,0.001]
[1760625678691,5.12945098,111160.0,111150.0,0.001]
[1760625678902,5.60317448,111160.0,111150.0,0.001]
[1760625679335,0.18896361,111140.0,111110.0,0.34]
[1760625679612,0.65369439,111130.0,111110.0,0.00014888]
[1760625679833,0.17997089,111130.0,111110.0,0.00014888]
[1760625680040,0.69957951,111140.0,111110.0,0.00014888]
[1760625680249,0.70957951,111140.0,111110.0,0.00014888]
[1760625680680,0.70957951,111140.0,111110.0,0.18015049]
[1760625680890,0.66368238,111140.0,111110.0,0.18115049]
[1760625681100,0.4837235,111140.0,111110.0,0.18115049]
[1760625681311,0.66367671,111140.0,111110.0,0.18114987]
[1760625681516,0.66367671,111140.0,111110.0,0.00114888]
[1760625681517,0.17996982,111130.0,111110.0,0.00114888]
[1760625681720,0.67267437,111140.0,111110.0,0.18115018]
[1760625681721,0.66267437,111140.0,111110.0,0.18115018]
[1760625681951,0.08,111140.0,111110.0,0.27984039]
[1760625682163,0.08,111140.0,111130.0,0.1799694]
[1760625683000,0.08,111140.0,111120.0,0.17998538]
[1760625683232,0.08,111140.0,111120.0,0.2696755]
[1760625683444,0.08,111140.0,111130.0,0.001]
[1760625683863,0.25995321,111140.0,111130.0,0.001]
[1760625684079,0.33331926,111140.0,111130.0,0.001]
[1760625684291,0.25995321,111140.0,111130.0,0.001]
[1760625684712,0.73367671,111140.0,111130.0,0.001]
[1760625684924,0.26054093,111140.0,111130.0,0.001]
[1760625685131,0.08058772,111140.0,111120.0,0.17998541]
[1760625685345,0.08058772,111140.0,111120.0,0.17998327]
[1760625685556,0.08058772,111140.0,111120.0,0.17998455]
[1760625685763,0.08058772,111140.0,111120.0,0.17998037]
[1760625685947,0.26054184,111140.0,111110.0,0.18915063]
[1760625686190,0.26054184,111140.0,111110.0,0.27884075]
[1760625686401,0.08058772,111140.0,111110.0,0.27884075]
[1760625686616,0.08058772,111140.0,111120.0,0.74339743]
[1760625686834,0.08058772,111140.0,111130.0,0.1799694]
[1760625687130,0.08058772,111140.0,111130.0,0.74338302]
[1760625687271,0.08058772,111140.0,111130.0,1.08338302]
[1760625687460,0.00058772,111140.0,111130.0,1.08338302]
[1760625688305,0.00058772,111140.0,111130.0,0.60965952]
[1760625688491,0.00058772,111140.0,111130.0,1.08338302]
[1760625688839,0.00058772,111140.0,111130.0,0.61065952]
[1760625689455,0.00058772,111140.0,111130.0,1.08438302]
[1760625689670,0.00058772,111140.0,111130.0,1.08338302]
[1760625689873,0.00058772,111140.0,111130.0,1.08438302]
[1760625690079,0.00058772,111140.0,111130.0,0.61065952]
[1760625690288,0.00058772,111140.0,111130.0,1.08438302]
[1760625690495,0.00058772,111140.0,111130.0,0.43069012]
[1760625690700,0.00058772,111140.0,111130.0,0.61065952]
[1760625690922,0.00058772,111140.0,111130.0,0.09069012]
[1760625691135,0.00058772,111140.0,111130.0,0.08969012]
[1760625691338,0.00058772,111140.0,111130.0,0.26965952]
[1760625691538,0.00058772,111140.0,111130.0,0.09069012]
[1760625691741,0.18054093,111140.0,111130.0,0.08969012]
[1760625691951,0.19298957,111140.0,111110.0,0.66287413]
[1760625692157,0.19298957,111140.0,111130.0,0.001]
[1760625692779,0.73671307,111140.0,111130.0,0.001]
[1760625692986,0.2505417,111140.0,111110.0,0.00014888]
[1760625693199,0.2505417,111140.0,111110.0,0.74356416]
[1760625693396,0.07058772,111140.0,111120.0,0.17998533]
[1760625694439,0.25054128,111140.0,111110.0,0.75256425]
[1760625694709,0.25054128,111140.0,111110.0,0.27884075]
[1760625694939,0.25953894,111140.0,111110.0,0.089839]
[1760625695152,0.17997062,111130.0,111110.0,0.00014888]
[1760625695356,0.6537091,111120.0,111110.0,0.00014888]
[1760625695564,0.6937091,111120.0,111110.0,0.00014888]
[1760625695784,0.2199856,111120.0,111110.0,0.00014888]
[1760625695992,0.28985226,111120.0,111110.0,0.00014888]
[1760625696822,0.2199856,111120.0,111110.0,0.00014888]
[1760625697453,0.2199856,111120.0,111110.0,0.00114888]
[1760625697671,0.18005041,111080.0,111070.0,0.00390747]
[1760625697894,0.06,111080.0,111070.0,0.00390747]
[1760625698094,0.06,111080.0,111070.0,0.18397409]
[1760625698310,0.06,111080.0,111070.0,0.00390747]
[1760625698948,0.06156806,111080.0,111070.0,0.00390747]
[1760625699991,0.06156806,111080.0,111070.0,0.09654042]
[1760625700184,0.31315108,111080.0,111070.0,0.00278042]
[1760625700384,0.71534197,111080.0,111070.0,0.09654042]
[1760625700612,0.24161847,111080.0,111070.0,0.09650042]
[1760625701022,0.06156806,111080.0,111070.0,0.27656704]
[1760625701221,0.06156806,111080.0,111070.0,0.09650042]
[1760625701425,0.06156806,111080.0,111070.0,0.00278042]
[1760625701669,0.06156806,111080.0,111070.0,0.09650042]
[1760625701891,0.06156806,111080.0,111070.0,0.27656704]
[1760625702200,0.06156806,111080.0,111070.0,0.09650042]
[1760625702813,0.06156806,111080.0,111070.0,0.27656704]
[1760625703018,0.06156806,111080.0,111070.0,0.75029054]
[1760625703221,0.00156806,111080.0,111070.0,1.17998066]
[1760625703420,0.00156806,111080.0,111070.0,0.70625716]
[1760625703814,0.00156806,111080.0,111070.0,1.17998066]
[1760625704517,0.00156806,111080.0,111070.0,1.18098066]
[1760625704728,0.00156806,111080.0,111070.0,0.70721716]
[1760625704937,0.00156806,111080.0,111070.0,1.18094066]
[1760625705396,0.00156806,111080.0,111070.0,0.70721716]
[1760625705598,0.00156806,111080.0,111070.0,1.18094066]
[1760625706170,0.00156806,111080.0,111070.0,0.70721716]
[1760625706389,0.00156806,111080.0,111070.0,1.18094066]
[1760625706587,0.24391766,111130.0,111100.0,0.18000846]
[1760625706588,0.01798804,111130.0,111100.0,0.18000846]
[1760625706788,0.13650261,111130.0,111120.0,0.1799856]
[1760625707027,0.12813678,111130.0,111110.0,0.65372008]
[1760625707255,0.12970419,111130.0,111110.0,0.52000168]
[1760625707451,0.12970419,111130.0,111120.0,0.0936]
[1760625707665,0.11271615,111130.0,111120.0,0.0936]
[1760625707997,0.11171615,111130.0,111120.0,0.0936]
[1760625708214,0.11171615,111130.0,111120.0,0.2735856]
[1760625708844,0.11171615,111130.0,111120.0,0.28600956]
[1760625709051,0.11171615,111130.0,111120.0,0.28700956]
[1760625709460,0.11171615,111130.0,111120.0,0.2745856]
[1760625710776,0.11171615,111130.0,111120.0,0.36427572]
[1760625710990,0.11171615,111130.0,111120.0,6.687905]
[1760625710991,0.00171615,111130.0,111120.0,6.687905]
[1760625711203,1e-08,111130.0,111120.0,6.687905]
[1760625711418,0.00058772,111140.0,111130.0,5.21615168]
[1760625711627,0.00058772,111140.0,111130.0,5.3058418]
[1760625711835,4.2473833,111160.0,111150.0,0.51993702]
[1760625712045,4.2473833,111160.0,111150.0,0.73928942]
[1760625712260,4.2473833,111160.0,111150.0,6.21301292]
[1760625712698,3.72958479,111160.0,111150.0,6.68673642]
[1760625712907,3.62984268,111160.0,111150.0,6.21301292]
[1760625713124,3.62984268,111160.0,111150.0,6.68673642]
[1760625713347,3.62984268,111160.0,111150.0,5.73928942]
[1760625713610,3.62984268,111160.0,111150.0,6.47253832]
[1760625714248,3.62984268,111160.0,111150.0,6.47453832]
[1760625714467,3.62984268,111160.0,111150.0,6.47253832]
[1760625714694,3.21959838,111160.0,111150.0,6.47253832]
[1760625714914,2.88830084,111160.0,111150.0,6.47453832]
[1760625715138,2.86126438,111160.0,111150.0,6.47453832]
[1760625715351,2.83422792,111160.0,111150.0,6.47453832]
[1760625716037,2.35928393,111160.0,111150.0,6.47453832]
[1760625716250,2.00808131,111160.0,111150.0,6.47245832]
[1760625716486,1.55209869,111160.0,111150.0,6.40730964]
[1760625716694,1.4020461,111160.0,111150.0,6.50274964]
[1760625716903,1.34461761,111160.0,111150.0,6.47249832]
[1760625717118,1.0965031,111160.0,111150.0,6.50074964]
[1760625717383,0.73125031,111160.0,111150.0,5.67606074]
[1760625717595,0.44268047,111160.0,111150.0,6.50070964]
[1760625717804,0.41564401,111160.0,111150.0,6.50070964]
[1760625718015,0.38860755,111160.0,111150.0,6.50374964]
[1760625718225,0.00399098,111180.0,111170.0,0.17990465]
[1760625718431,1e-08,111190.0,111180.0,5.55607074]
[1760625718642,0.01798804,111210.0,111200.0,5.51985611]
[1760625718854,0.01848433,111210.0,111200.0,7.20562631]
[1760625719061,0.01848433,111210.0,111200.0,6.47237741]
[1760625719062,0.00225797,111210.0,111200.0,6.47237741]
[1760625719274,0.01227091,111220.0,111210.0,5.51983994]
[1760625719489,0.03598804,111250.0,111220.0,6.25307267]
[1760625719490,0.00508,111230.0,111220.0,6.25307267]
[1760625719704,0.00522884,111230.0,111220.0,6.47238507]
[1760625719954,1e-08,111230.0,111220.0,6.50325916]
[1760625720165,0.0002,111260.0,111250.0,0.51977528]
[1760625720374,0.0002,111260.0,111250.0,6.4361543]
[1760625720588,0.01798804,111280.0,111270.0,0.51974296]
[1760625720809,0.00014871,111280.0,111270.0,6.50470426]
[1760625721025,0.01227091,111310.0,111290.0,5.21589294]
[1760625721277,0.01227091,111310.0,111290.0,6.47227196]
[1760625721519,0.01,111300.0,111290.0,6.50314605]
[1760625721730,0.01,111300.0,111290.0,5.76989715]
[1760625721940,0.01,111300.0,111290.0,6.40970605]
[1760625722166,0.01,111300.0,111290.0,6.50310605]
[1760625722589,0.01227091,111310.0,111300.0,0.51969451]
[1760625722808,0.01227091,111310.0,111300.0,6.4096899]
[1760625723019,0.01227091,111310.0,111300.0,6.47763509]
[1760625723227,0.005,111330.0,111320.0,6.25291113]
[1760625723438,0.0054958,111330.0,111320.0,6.43600125]
[1760625723650,1e-08,111330.0,111320.0,6.53545762]
[1760625723867,0.2,111360.0,111350.0,5.51961383]
[1760625724078,0.20014864,111360.0,111350.0,6.47209513]
[1760625724285,0.20014864,111360.0,111350.0,6.40960922]
[1760625724500,0.20014864,111360.0,111350.0,6.50296922]
[1760625724710,0.20014864,111360.0,111350.0,5.76972032]
[1760625724924,0.20014864,111360.0,111350.0,6.50296922]
[1760625725129,0.20014864,111360.0,111350.0,5.76972032]
[1760625725417,0.20014864,111360.0,111350.0,6.50296922]
[1760625725630,0.17314066,111360.0,111350.0,6.50296922]
[1760625725846,0.14613268,111360.0,111350.0,6.50296922]
[1760625726062,0.09217962,111360.0,111350.0,6.51491145]
[1760625726298,0.06520309,111360.0,111350.0,6.45395145]
[1760625726512,0.03822656,111360.0,111350.0,6.54731145]
[1760625726733,1e-08,111360.0,111350.0,7.30798635]
[1760625726954,8e-05,111380.0,111370.0,5.55576385]
[1760625727176,0.03025895,111400.0,111390.0,0.21573161]
[1760625727388,0.03040748,111400.0,111390.0,1.13203063]
[1760625727602,0.01241944,111400.0,111390.0,6.06954472]
[1760625727821,0.01241944,111400.0,111390.0,6.43597072]
[1760625728027,0.01241944,111400.0,111390.0,6.50290472]
[1760625728244,0.01241944,111400.0,111390.0,0.42969012]
[1760625728941,0.19195265,111400.0,111390.0,0.18305012]
[1760625729167,0.01241944,111400.0,111390.0,0.18305012]
[1760625729384,0.01398298,111400.0,111390.0,0.08969012]
[1760625729605,0.19351619,111400.0,111390.0,0.08969012]
[1760625729818,0.00897746,111390.0,111360.0,5.0]
[1760625730033,0.17956748,111380.0,111360.0,0.18309012]
[1760625730275,0.01398298,111400.0,111370.0,0.84089717]
[1760625730486,0.01398298,111400.0,111380.0,0.34]
[1760625730694,0.07398298,111400.0,111380.0,0.42969012]
[1760625730902,0.07398298,111400.0,111390.0,0.08969012]
[1760625731327,0.08511974,111400.0,111390.0,0.08969012]
[1760625731541,0.00897827,111380.0,111350.0,0.01194223]
[1760625731771,0.1885443,111380.0,111360.0,0.08969012]
[1760625732188,0.18855753,111380.0,111350.0,0.34]
[1760625732401,0.19012142,111380.0,111350.0,5.08969012]
[1760625732609,0.21012142,111380.0,111350.0,0.08969012]
[1760625732802,0.02156389,111380.0,111360.0,0.08969012]
[1760625733483,0.02156389,111380.0,111360.0,1.16293902]
[1760625733691,0.02156389,111380.0,111360.0,1.34253601]
[1760625733900,0.02156389,111380.0,111360.0,0.60928711]
[1760625734110,0.02156389,111380.0,111360.0,0.34]
[1760625734736,0.02156389,111380.0,111370.0,0.08969012]
[1760625735358,0.00156389,111380.0,111370.0,0.08969012]
[1760625735569,0.00156389,111380.0,111370.0,1.34252059]
[1760625735777,0.01241944,111400.0,111390.0,0.17954933]
[1760625735982,0.14241944,111400.0,111390.0,0.26923945]
[1760625736390,0.143983,111400.0,111390.0,0.08969012]
[1760625737627,0.143983,111400.0,111390.0,0.10180408]
[1760625737840,0.143983,111400.0,111390.0,0.08969012]
[1760625738051,0.15511976,111400.0,111370.0,5.17958051]
[1760625738261,0.143983,111400.0,111380.0,0.08969012]
[1760625738472,0.3235173,111400.0,111380.0,0.08969012]
[1760625738677,0.33249396,111400.0,111370.0,0.35178052]
[1760625738890,0.33249396,111400.0,111370.0,0.42969012]
[1760625739099,0.143983,111400.0,111370.0,0.60927067]
[1760625739308,0.32351717,111400.0,111370.0,0.42969012]
[1760625739931,0.17954936,111390.0,111370.0,0.42969012]
[1760625740320,0.20852682,111390.0,111360.0,0.34]
[1760625740566,0.20852682,111390.0,111360.0,0.42969012]
[1760625740776,0.20852682,111390.0,111350.0,0.18859085]
[1760625740777,0.17958555,111370.0,111340.0,0.01209053]
[1760625740997,0.93181352,111370.0,111340.0,0.08969012]
[1760625741215,0.18859711,111350.0,111320.0,0.01798804]
[1760625741428,0.18861184,111340.0,111320.0,0.08969012]
[1760625741649,0.93425594,111350.0,111310.0,5.01205946]
[1760625741864,0.18858375,111360.0,111320.0,0.08969012]
[1760625742073,0.17961406,111350.0,111330.0,5.0]
[1760625742286,0.97184365,111350.0,111310.0,0.19173752]
[1760625742503,0.05,111350.0,111330.0,0.00014864]
[1760625742704,0.05,111350.0,111330.0,0.2694839]
[1760625742919,0.05156439,111350.0,111340.0,0.26932008]
[1760625743129,0.00156439,111350.0,111340.0,6.34256898]
[1760625743548,0.00156439,111350.0,111340.0,0.60932008]
[1760625743762,0.00156439,111350.0,111340.0,0.26932008]
[1760625743977,0.00156439,111350.0,111340.0,0.08969012]
[1760625744217,0.00156439,111350.0,111340.0,0.26932008]
[1760625744654,0.00156439,111350.0,111340.0,0.27032008]
[1760625744863,0.00156439,111350.0,111340.0,0.26932008]
[1760625745079,0.00156439,111350.0,111340.0,0.08969012]
[1760625745331,0.00156439,111350.0,111330.0,0.34014864]
[1760625745548,0.00156439,111350.0,111340.0,0.17962996]
[1760625745763,0.00156439,111350.0,111340.0,0.26932008]
[1760625746178,0.00156439,111350.0,111340.0,1.00256898]
[1760625746387,0.00156439,111350.0,111340.0,0.08969012]
[1760625747209,0.00156439,111350.0,111330.0,0.5197935]
[1760625747419,0.00156439,111350.0,111330.0,0.60948362]
[1760625747634,0.00156439,111350.0,111330.0,0.42983876]
[1760625747849,0.00156439,111350.0,111340.0,0.28728307]
[1760625748105,0.00156439,111350.0,111340.0,1.34256898]
[1760625748319,0.01798804,111390.0,111360.0,0.18856405]
[1760625748529,0.12798804,111390.0,111370.0,0.26927068]
[1760625748740,0.12798804,111390.0,111380.0,0.17956545]
[1760625748950,0.11156375,111390.0,111380.0,0.26925557]
[1760625749159,0.11156375,111390.0,111380.0,1.00250447]
[1760625749365,0.12211531,111390.0,111380.0,0.26925557]
[1760625750001,0.12211531,111390.0,111380.0,1.37868675]
[1760625750220,0.01055156,111390.0,111380.0,0.60925557]
[1760625750455,0.01055156,111390.0,111380.0,1.37868675]
[1760625750680,0.01055156,111390.0,111380.0,6.37868675]
[1760625750906,0.01055156,111390.0,111380.0,6.53997419]
[1760625751120,0.01055156,111390.0,111380.0,6.47228675]
[1760625751332,0.01227091,111400.0,111390.0,0.17954933]
[1760625751549,0.00897263,111450.0,111420.0,0.17949704]
[1760625751822,0.01798804,111430.0,111420.0,0.17949704]
[1760625751995,0.01848335,111450.0,111430.0,0.17948409]
[1760625752260,0.13049531,111450.0,111440.0,0.17946877]
[1760625752685,0.13049531,111450.0,111430.0,0.17947159]
[1760625752895,0.13049531,111450.0,111420.0,0.61816529]
[1760625753113,0.13049531,111450.0,111430.0,0.28712131]
[1760625753331,0.13049531,111450.0,111430.0,0.26917283]
[1760625753540,0.13049531,111450.0,111440.0,0.19741564]
[1760625753759,0.00049531,111450.0,111440.0,1.34240779]
[1760625754603,0.00049531,111450.0,111440.0,0.42969012]
[1760625754855,0.00049531,111450.0,111440.0,5.60915889]
[1760625755062,0.00049531,111450.0,111440.0,6.34240779]
[1760625755270,0.00049531,111450.0,111440.0,5.70283889]
[1760625755542,0.00049531,111450.0,111440.0,6.43608779]
[1760625755966,0.00049531,111450.0,111440.0,6.34240779]
[1760625756181,0.00049531,111450.0,111440.0,6.34340779]
[1760625756391,0.00049531,111450.0,111440.0,1.34340779]
[1760625756606,0.00049531,111450.0,111440.0,0.61015889]
[1760625756817,0.00049531,111450.0,111440.0,0.43069012]
[1760625757032,0.00049531,111450.0,111440.0,0.08969012]
[1760625757259,0.00049531,111450.0,111440.0,0.001]
[1760625757468,0.01049531,111450.0,111440.0,0.001]
[1760625757685,0.01205812,111450.0,111440.0,0.09069012]
[1760625757901,0.00205812,111450.0,111440.0,0.27015889]
[1760625758322,0.00049531,111450.0,111440.0,0.27015889]
[1760625758532,0.00049531,111450.0,111440.0,0.26915889]
[1760625758955,0.00049531,111450.0,111440.0,0.08969012]
[1760625759171,0.00049531,111450.0,111400.0,1.2332489]
[1760625759387,0.00049531,111450.0,111410.0,1.01654982]
[1760625759599,0.00049531,111450.0,111430.0,5.91273008]
[1760625759825,0.00049531,111450.0,111440.0,0.08969012]
[1760625761762,0.00045531,111450.0,111440.0,0.08969012]
[1760625762186,0.00396777,111450.0,111440.0,0.08969012]
[1760625762412,0.18342043,111450.0,111440.0,0.08969012]
[1760625762628,0.99666933,111450.0,111410.0,0.01177999]
[1760625762840,0.08045531,111450.0,111420.0,0.08969012]
[1760625763099,0.08045531,111450.0,111420.0,0.26919044]
[1760625763308,0.08045531,111450.0,111420.0,0.27816548]
[1760625763516,0.00234206,111430.0,111420.0,0.27816548]
[1760625764221,0.00234206,111430.0,111420.0,0.08969012]
[1760625764399,0.00234206,111430.0,111420.0,0.10764021]
[1760625764658,0.00234206,111430.0,111420.0,0.28714119]
[1760625764867,0.16245704,111460.0,111420.0,0.2691911]
[1760625765073,0.179453,111450.0,111420.0,0.2691911]
[1760625765321,0.001563,111440.0,111420.0,0.08969012]
[1760625765515,0.179453,111450.0,111420.0,0.08969012]
[1760625765732,0.29101603,111450.0,111420.0,0.08969012]
[1760625766750,0.11156303,111450.0,111420.0,1.02038955]
[1760625766958,0.11156303,111450.0,111420.0,1.00243946]
[1760625767167,0.11156303,111450.0,111420.0,1.0114145]
[1760625767372,0.11156303,111450.0,111430.0,0.01794848]
[1760625767578,0.29101569,111450.0,111440.0,0.08969012]
[1760625768423,0.11156303,111450.0,111440.0,0.08969012]
[1760625768640,0.33000038,111450.0,111410.0,0.5314837]
[1760625768853,0.29998832,111450.0,111420.0,0.26918829]
[1760625769272,0.11156303,111450.0,111430.0,0.91272401]
[1760625769486,0.11156303,111450.0,111440.0,0.08969012]
[1760625769906,0.11156303,111450.0,111440.0,0.42969012]
[1760625770117,0.00014847,111460.0,111440.0,0.42969012]
[1760625770118,0.00014847,111460.0,111450.0,5.51945266]
[1760625770322,0.00014847,111460.0,111450.0,6.43599168]
[1760625771060,0.00014847,111460.0,111450.0,6.47217396]
[1760625771883,0.00014847,111460.0,111450.0,6.47317396]
[1760625772722,0.01727091,111490.0,111480.0,0.17940437]
[1760625772925,0.01727091,111490.0,111480.0,1.11388382]
[1760625773133,0.01727091,111490.0,111480.0,6.43594339]
[1760625773342,0.02078148,111490.0,111480.0,6.47212567]
[1760625773554,0.02078148,111490.0,111480.0,6.68079399]
[1760625775465,0.02078148,111490.0,111480.0,6.58719399]
[1760625775680,0.02078148,111490.0,111480.0,6.68079399]
[1760625776094,0.02078148,111490.0,111480.0,5.8336531]
[1760625776731,0.02078148,111490.0,111480.0,5.7400531]
[1760625776954,0.02078148,111490.0,111480.0,0.08969012]
[1760625777165,0.02078148,111490.0,111480.0,0.56064873]
[1760625777372,0.02078148,111490.0,111480.0,0.08969012]
[1760625778243,0.02078148,111490.0,111480.0,0.56064873]
[1760625778449,0.02078148,111490.0,111480.0,0.7400531]
[1760625778655,0.02078148,111490.0,111480.0,6.55101171]
[1760625779084,0.02078148,111490.0,111480.0,6.0800531]
[1760625780103,0.02078148,111490.0,111480.0,0.08969012]
[1760625780304,0.02078148,111490.0,111480.0,0.7400531]
[1760625780508,0.02078148,111490.0,111480.0,6.1736131]
[1760625780918,5.03404862,111500.0,111490.0,0.37618228]
[1760625781130,3.55866875,111500.0,111490.0,5.64526068]
[1760625781337,3.35093832,111500.0,111490.0,6.61331608]
[1760625781547,3.16289231,111500.0,111490.0,6.63950954]
[1760625781781,3.10912884,111500.0,111490.0,6.61098831]
[1760625781977,3.08217976,111500.0,111490.0,6.20993929]
[1760625782220,3.05523068,111500.0,111490.0,6.11621929]
[1760625782413,3.00133252,111500.0,111490.0,6.20993929]
[1760625782615,2.97438344,111500.0,111490.0,6.20993929]
[1760625782857,2.94743436,111500.0,111490.0,6.20993929]
[1760625783060,2.92048528,111500.0,111490.0,6.30485929]
[1760625783287,2.8935362,111500.0,111490.0,6.08003701]
[1760625783511,2.37420968,111500.0,111490.0,6.64471562]
[1760625783724,2.15244876,111500.0,111490.0,6.20993929]
[1760625783942,2.12549968,111500.0,111490.0,6.20993929]
[1760625784178,1.65308496,111500.0,111490.0,6.20993929]
[1760625784370,1.38777632,111500.0,111490.0,6.20993929]
[1760625784557,1.16727025,111500.0,111490.0,6.20993929]
[1760625784727,1.14032117,111500.0,111490.0,6.20993929]
[1760625784931,1.11337209,111500.0,111490.0,6.20993929]
[1760625785134,0.49443762,111500.0,111490.0,6.20993929]
[1760625785521,0.23748422,111500.0,111490.0,6.20993929]
[1760625785772,0.00100001,111500.0,111490.0,6.6808979]
[1760625786032,0.0002,111520.0,111510.0,5.51935611]
[1760625786279,0.00508,111530.0,111520.0,6.49743952]
[1760625786510,0.01798804,111550.0,111540.0,5.99026648]
[1760625786722,0.00014838,111550.0,111540.0,6.0799566]
[1760625786934,0.01383233,111580.0,111540.0,6.0799566]
[1760625787147,0.00549442,111570.0,111560.0,6.55088306]
[1760625787356,0.00549442,111570.0,111560.0,6.07992445]
[1760625787565,0.01017055,111570.0,111560.0,6.07992445]
[1760625787830,0.01017055,111570.0,111560.0,6.56213668]
[1760625789119,0.01017055,111570.0,111560.0,5.62021946]
[1760625789330,0.01017055,111570.0,111560.0,0.62021946]
[1760625789548,0.01017055,111570.0,111560.0,1.09117807]
[1760625789812,0.01017055,111570.0,111560.0,0.10094374]
[1760625790021,0.01017055,111570.0,111560.0,0.08969012]
[1760625790684,0.02017055,111570.0,111560.0,0.08969012]
[1760625790901,0.01017055,111570.0,111560.0,0.08969012]
[1760625792590,0.49112916,111570.0,111530.0,0.01798804]
[1760625792803,0.20372017,111570.0,111530.0,0.10767816]
[1760625793014,0.67467878,111570.0,111530.0,0.10767816]
[1760625793221,0.18823957,111560.0,111530.0,0.08969012]
[1760625793431,0.00292337,111540.0,111530.0,0.08969012]
[1760625793625,0.18654926,111560.0,111530.0,0.08969012]
[1760625793880,0.13,111560.0,111530.0,0.08969012]
[1760625794090,0.13,111560.0,111540.0,0.08969012]
[1760625794308,0.78023786,111560.0,111530.0,0.08969012]
[1760625794524,0.47095861,111550.0,111530.0,0.08969012]
[1760625794747,0.18828758,111540.0,111490.0,0.01798804]
[1760625794960,0.47095861,111530.0,111500.0,0.26906219]
[1760625795172,0.47095861,111530.0,111500.0,0.08969012]
[1760625795383,0.01,111530.0,111500.0,0.08969012]
[1760625795590,0.18932398,111530.0,111500.0,0.08969012]
[1760625795797,0.01,111530.0,111500.0,0.08969012]
[1760625796003,0.47095861,111520.0,111500.0,0.08969012]
[1760625796235,0.47095861,111520.0,111500.0,0.0898385]
[1760625796439,0.47252052,111530.0,111500.0,0.0898385]
[1760625796860,0.66184487,111530.0,111500.0,0.0898385]
[1760625797074,0.73832131,111530.0,111500.0,0.0898385]
[1760625797310,0.01156191,111530.0,111500.0,0.0898385]
[1760625797514,0.48252052,111530.0,111500.0,0.0898385]
[1760625797946,0.19088651,111530.0,111500.0,0.0898385]
[1760625798162,0.66184512,111530.0,111500.0,0.0898385]
[1760625798586,0.1998527,111530.0,111500.0,0.0898385]
[1760625798796,0.47095861,111520.0,111500.0,0.0898385]
[1760625799224,0.47095861,111510.0,111500.0,0.0898385]
[1760625799451,0.1898527,111530.0,111500.0,0.0898385]
[1760625799659,0.47095861,111520.0,111500.0,0.0898385]
[1760625799847,0.68030244,111520.0,111500.0,0.00014838]
[1760625800099,0.47095861,111510.0,111500.0,0.00014838]
[1760625800319,0.47095861,111520.0,111500.0,0.00014838]
[1760625800536,0.01,111520.0,111500.0,0.0898385]
[1760625800963,0.48095861,111520.0,111500.0,0.0898385]
[1760625801241,0.66029885,111520.0,111500.0,0.00014838]
[1760625801454,0.47095861,111510.0,111500.0,0.00014838]
[1760625801662,0.52095861,111510.0,111500.0,0.00014838]
[1760625801888,0.70031472,111510.0,111500.0,0.00014838]
[1760625803017,0.05,111510.0,111500.0,0.00014838]
[1760625803274,0.70031472,111510.0,111500.0,0.00014838]
[1760625803514,0.76612352,111510.0,111500.0,0.00014838]
[1760625803726,0.736497,111510.0,111500.0,0.00014838]
[1760625804574,4.579564,111510.0,111500.0,0.00014838]
[1760625804790,4.10860539,111510.0,111500.0,0.00014838]
[1760625805028,0.70187719,111510.0,111500.0,0.00014838]
[1760625805234,4.63462627,111510.0,111500.0,0.00014838]
[1760625805680,4.67080855,111510.0,111500.0,0.00014838]
[1760625806113,4.67080855,111510.0,111500.0,1e-08]
[1760625806114,5.48176716,111510.0,111500.0,1e-08]
[1760625806346,3.843067,111460.0,111450.0,0.00408027]
[1760625806556,0.66039517,111460.0,111450.0,0.00422865]
[1760625807093,4.50346217,111460.0,111450.0,0.00422865]